fUST/lending_fUST_20250615
["ID","MTS","AMOUNT","RATE_DAILY","PERIOD"]
[365962772,1749997851120,-460.0,0.00021095,2]
[365962774,1749997851129,-460.0,0.00021095,2]
[365962776,1749997851139,-460.0,0.00021095,2]
[365962778,1749997851148,-460.0,0.00021095,2]
[365962780,1749997851157,-460.0,0.00021095,2]
[365962782,1749997851166,-841.13,0.00021095,2]
[365962784,1749997851176,-460.0,0.00021095,2]
[365962786,1749997851185,-360.0,0.00021095,2]
[365962788,1749997851195,-929.85,0.00021095,2]
[365962791,1749997851204,-460.0,0.00021095,2]
[365962793,1749997851215,-408.49075514,0.00021095,2]
[365962795,1749997851224,-469.96,0.00021095,2]
[365962796,1749997851233,-1702.65,0.00021095,2]
[365962799,1749997851243,-460.0,0.00021095,2]
[365962800,1749997851253,-1493.35,0.00021095,2]
[365962802,1749997851262,-460.0,0.00021095,2]
[365962804,1749997851272,-1799.88,0.00021095,2]
[365962806,1749997851281,-460.0,0.00021095,2]
[365962808,1749997851290,-774.87087582,0.00021141,4]
[365962810,1749997851300,-600.0,0.00021164,2]
[365962812,1749997851310,-151.0,0.000213,4]
[365962814,1749997851319,-774.87087582,0.00021348,5]
[365962816,1749997851329,-1000.0,0.00021357,2]
[365962818,1749997851338,-543.94,0.00021369,2]
[365962820,1749997851348,-460.0,0.00021369,2]
[365962822,1749997851357,-460.0,0.00021369,2]
[365962824,1749997851366,-460.0,0.00021369,2]
[365962826,1749997851376,-182.4422876,0.00021369,2]
[365962828,1749997851386,-460.0,0.00021369,2]
[365962830,1749997851395,-679.29,0.00021369,2]
[365962832,1749997851405,-460.0,0.00021369,2]
[365962834,1749997851414,-420.0,0.00021369,2]
[365962836,1749997851424,-1724.94,0.00021369,2]
[365962838,1749997851433,-522.62,0.00021369,2]
[365962840,1749997851442,-1483.85,0.00021369,2]
[365962842,1749997851452,-460.0,0.00021369,2]
[365962844,1749997851462,-1946.18,0.00021369,2]
[365962846,1749997851472,-1921.67,0.00021369,2]
[365962848,1749997851481,-460.0,0.00021369,2]
[365962850,1749997851491,-319.77,0.00021369,2]
[365962852,1749997851501,-460.0,0.00021369,2]
[365962854,1749997851510,-650.71,0.00021369,2]
[365962856,1749997851520,-671.89,0.00021369,2]
[365962858,1749997851529,-884.21,0.00021369,2]
[365962860,1749997851539,-460.0,0.00021369,2]
[365962862,1749997851549,-460.0,0.00021369,2]
[365962864,1749997851559,-460.0,0.00021369,2]
[365962866,1749997851569,-460.0,0.00021369,2]
[365962868,1749997851579,-460.0,0.00021369,2]
[365962870,1749997851589,-841.13,0.00021369,2]
[365962872,1749997851599,-460.0,0.00021369,2]
[365962874,1749997851608,-929.85,0.00021369,2]
[365962876,1749997851618,-460.0,0.00021369,2]
[365962878,1749997851628,-1702.65,0.00021369,2]
[365962880,1749997851637,-460.0,0.00021369,2]
[365962882,1749997851648,-1493.35,0.00021369,2]
[365962884,1749997851657,-460.0,0.00021369,2]
[365962886,1749997851667,-1799.88,0.00021369,2]
[365962888,1749997851677,-460.0,0.00021369,2]
[365962890,1749997851686,-500.0,0.00021375,2]
[365962892,1749997851696,-500.0,0.00021375,2]
[365962894,1749997851705,-500.0,0.00021375,2]
[365962896,1749997851716,-513.82596414,0.00021392,2]
[365962898,1749997851725,-2000.0,0.000215,2]
[365962900,1749997851735,-774.87087582,0.00021555,5]
[365962902,1749997851745,-101133.05049,0.00021642,2]
[365962904,1749997851754,-543.94,0.00021643,2]
[365962906,1749997851764,-460.0,0.00021643,2]
[365962908,1749997851773,-420.0,0.00021643,2]
[365962910,1749997851783,-432.41,0.00021643,2]
[365962912,1749997851793,-460.0,0.00021643,2]
[365962914,1749997851803,-679.29,0.00021643,2]
[365962916,1749997851813,-460.0,0.00021643,2]
[365962918,1749997851822,-1724.94,0.00021643,2]
[365962920,1749997851832,-522.62,0.00021643,2]
[365962922,1749997851841,-1483.85,0.00021643,2]
[365962924,1749997851851,-460.0,0.00021643,2]
[365962926,1749997851861,-1946.18,0.00021643,2]
[365962928,1749997851873,-1921.67,0.00021643,2]
[365962930,1749997851882,-460.0,0.00021643,2]
[365962932,1749997851892,-460.0,0.00021643,2]
[365962934,1749997851902,-650.71,0.00021643,2]
[365962936,1749997851911,-671.89,0.00021643,2]
[365962938,1749997851921,-884.21,0.00021643,2]
[365962940,1749997851930,-460.0,0.00021643,2]
[365962942,1749997851939,-440.0,0.00021643,2]
[365962944,1749997851949,-460.0,0.00021643,2]
[365962946,1749997851959,-440.0,0.00021643,2]
[365962948,1749997851968,-455.19,0.00021643,2]
[365962950,1749997851978,-841.13,0.00021643,2]
[365962952,1749997851987,-460.0,0.00021643,2]
[365962954,1749997851997,-929.85,0.00021643,2]
[365962956,1749997852006,-460.0,0.00021643,2]
[365962958,1749997852016,-1702.65,0.00021643,2]
[365962960,1749997852026,-460.0,0.00021643,2]
[365962962,1749997852035,-1493.35,0.00021643,2]
[365962964,1749997852045,-460.0,0.00021643,2]
[365962966,1749997852054,-1799.88,0.00021643,2]
[365962968,1749997852064,-445.84,0.00021643,2]
[365962970,1749997852073,-50000.0,0.0002166,2]
[365962972,1749997852083,-587.0,0.00021663,2]
[365962974,1749997852093,-151.0,0.000217,3]
[365962976,1749997852102,-263.77751492,0.00021707,2]
[365962978,1749997852112,-260.36814119,0.00021707,2]
[365962980,1749997852122,-502.36320382,0.00021707,2]
[365962982,1749997852131,-263.18105773,0.00021707,2]
[365962984,1749997852141,-258.77533907,0.00021707,2]
[365962986,1749997852151,-2780.8,0.00021746,2]
[365962988,1749997852160,-774.87087582,0.00021762,5]
[365962990,1749997852170,-1200.32,0.000218,2]
[365962992,1749997852179,-500.0,0.00021905,2]
[365962994,1749997852189,-543.94,0.00021917,2]
[365962996,1749997852198,-460.0,0.00021917,2]
[365962998,1749997852208,-500.0,0.00021917,2]
[365963000,1749997852218,-500.0,0.00021917,2]
[365963002,1749997852227,-500.0,0.00021917,2]
[365963004,1749997852236,-500.0,0.00021917,2]
[365963006,1749997852245,-500.0,0.00021917,2]
[365963008,1749997852255,-500.0,0.00021917,2]
[365963009,1749997852264,-500.0,0.00021917,2]
[365963011,1749997852273,-500.0,0.00021917,2]
[365963014,1749997852283,-500.0,0.00021917,2]
[365963016,1749997852294,-504.23576132,0.00021917,2]
[365963018,1749997852303,-500.0,0.00021917,2]
[365963020,1749997852313,-500.0,0.00021917,2]
[365963022,1749997852323,-502.37999816,0.00021917,2]
[365963024,1749997852333,-206.82872881,0.00021917,2]
[365963026,1749997852342,-679.29,0.00021917,2]
[365963028,1749997852352,-354.5,0.00021917,2]
[365963029,1749997852363,-1724.94,0.00021917,2]
[365963032,1749997852373,-522.62,0.00021917,2]
[365963033,1749997852383,-1483.85,0.00021917,2]
[365963035,1749997852394,-460.0,0.00021917,2]
[365963037,1749997852404,-1946.18,0.00021917,2]
[365963039,1749997852414,-1921.67,0.00021917,2]
[365963041,1749997852423,-460.0,0.00021917,2]
[365963043,1749997852433,-460.0,0.00021917,2]
[365963046,1749997852442,-650.71,0.00021917,2]
[365963048,1749997852452,-671.89,0.00021917,2]
[365963049,1749997852461,-884.21,0.00021917,2]
[365963052,1749997852470,-460.0,0.00021917,2]
[365963053,1749997852480,-460.0,0.00021917,2]
[365963056,1749997852490,-841.13,0.00021917,2]
[365963057,1749997852500,-460.0,0.00021917,2]
[365963059,1749997852509,-929.85,0.00021917,2]
[365963061,1749997852519,-460.0,0.00021917,2]
[365963064,1749997852528,-1702.65,0.00021917,2]
[365963066,1749997852539,-263.76,0.00021917,2]
[365963068,1749997852548,-1493.35,0.00021917,2]
[365963070,1749997852558,-232.1155073,0.00021917,2]
[365963072,1749997852567,-1799.88,0.00021917,2]
[365963074,1749997852576,-1000.0,0.00021923,2]
[365963076,1749997852585,-774.87087582,0.00021969,6]
[365963078,1749997852594,-600.0,0.00021973,2]
[365963080,1749997852603,-500.0,0.00021973,2]
[365963081,1749997852613,-500.0,0.00021973,2]
[365963083,1749997852622,-500.0,0.00021973,2]
[365963085,1749997852631,-12612.59688001,0.0002199,2]
[365963087,1749997852640,-349.27989864,0.00021991,2]
[365963089,1749997852650,-186.0,0.00022,2]
[365963100,1749997852733,-172.0,0.00022,2]
[365963102,1749997852751,-160.0,0.00022,2]
[365963104,1749997852761,-99894.63,0.00022,7]
[365963106,1749997852770,-36359.58,0.00022,2]
[365963108,1749997852779,-2000.0,0.00022,2]
[365963110,1749997852789,-395.20413537,0.00022,2]
[365963112,1749997852799,-136289.78546048,0.00022,2]
[365963114,1749997852809,-12535.62630729,0.00022,7]
[365963116,1749997852819,-160.0,0.00022091,2]
[365963118,1749997852829,-437.03504658,0.00022174,2]
[365963120,1749997852838,-774.87087582,0.00022176,6]
[365963122,1749997852848,-543.94,0.00022191,2]
[365963124,1749997852857,-460.0,0.00022191,2]
[365963126,1749997852867,-679.29,0.00022191,2]
[365963128,1749997852876,-1724.94,0.00022191,2]
[365963130,1749997852885,-522.62,0.00022191,2]
[365963132,1749997852895,-1483.85,0.00022191,2]
[365963134,1749997852905,-460.0,0.00022191,2]
[365963136,1749997852915,-1946.18,0.00022191,2]
[365963138,1749997852925,-1921.67,0.00022191,2]
[365963140,1749997852935,-477.34,0.00022191,2]
[365963142,1749997852944,-460.0,0.00022191,2]
[365963144,1749997852954,-650.71,0.00022191,2]
[365963146,1749997852963,-671.89,0.00022191,2]
[365963148,1749997852973,-884.21,0.00022191,2]
[365963150,1749997852983,-460.0,0.00022191,2]
[365963152,1749997852993,-460.0,0.00022191,2]
[365963154,1749997853003,-841.13,0.00022191,2]
[365963156,1749997853012,-460.0,0.00022191,2]
[365963158,1749997853022,-929.85,0.00022191,2]
[365963160,1749997853032,-278.00474642,0.00022191,2]
[365963162,1749997853041,-1702.65,0.00022191,2]
[365963164,1749997853051,-1493.35,0.00022191,2]
[365963166,1749997853061,-1799.88,0.00022191,2]
[365963168,1749997853071,-151.0,0.000222,6]
[365963170,1749997853080,-600.0,0.0002226,2]
[365963172,1749997853090,-437.03504658,0.00022321,2]
[365963173,1749997853099,-151.0,0.00022323,7]
[365963176,1749997853109,-774.87087582,0.00022383,7]
[365963177,1749997853118,-153.0,0.00022395,2]
[365963180,1749997853128,-153.0,0.00022395,2]
[365963181,1749997853137,-153.0,0.00022395,2]
[365963183,1749997853147,-153.0,0.00022395,2]
[365963184,1749997853157,-153.0,0.00022395,2]
[365963185,1749997853167,-153.0,0.00022395,2]
[365963186,1749997853176,-153.0,0.00022395,2]
[365963187,1749997853187,-153.0,0.00022395,2]
[365963188,1749997853196,-153.0,0.00022395,2]
[365963189,1749997853206,-153.0,0.00022395,2]
[365963190,1749997853215,-153.0,0.00022395,2]
[365963191,1749997853224,-153.0,0.00022395,2]
[365963192,1749997853234,-153.0,0.00022395,2]
[365963193,1749997853243,-153.0,0.00022395,2]
[365963194,1749997853252,-153.0,0.00022395,2]
[365963195,1749997853262,-153.0,0.00022395,2]
[365963196,1749997853271,-153.0,0.00022395,2]
[365963197,1749997853281,-153.0,0.00022395,2]
[365963198,1749997853290,-153.0,0.00022395,2]
[365963199,1749997853299,-153.0,0.00022395,2]
[365963200,1749997853309,-153.0,0.00022395,2]
[365963201,1749997853318,-153.0,0.00022395,2]
[365963202,1749997853327,-153.0,0.00022395,2]
[365963203,1749997853336,-153.0,0.00022395,2]
[365963204,1749997853346,-153.0,0.00022395,2]
[365963205,1749997853355,-153.0,0.00022395,2]
[365963206,1749997853364,-153.0,0.00022395,2]
[365963207,1749997853374,-153.0,0.00022395,2]
[365963208,1749997853384,-153.0,0.00022395,2]
[365963209,1749997853394,-153.0,0.00022395,2]
[365963210,1749997853404,-153.0,0.00022395,2]
[365963211,1749997853414,-153.0,0.00022395,2]
[365963212,1749997853423,-153.0,0.00022395,2]
[365963213,1749997853433,-54671.0,0.0002243,4]
[365963214,1749997853443,-175.021273,0.0002243,7]
[365963215,1749997853452,-250.0,0.00022447,2]
[365963216,1749997853462,-543.94,0.00022465,2]
[365963217,1749997853471,-460.0,0.00022465,2]
[365963219,1749997853480,-500.0,0.00022465,2]
[365963220,1749997853490,-679.29,0.00022465,2]
[365963223,1749997853509,-1724.94,0.00022465,2]
[365963225,1749997853520,-522.62,0.00022465,2]
[365963227,1749997853531,-1483.85,0.00022465,2]
[365963229,1749997853542,-460.0,0.00022465,2]
[365963231,1749997853553,-1946.18,0.00022465,2]
[365963233,1749997853563,-1921.67,0.00022465,2]
[365963235,1749997853573,-650.71,0.00022465,2]
[365963238,1749997853583,-671.89,0.00022465,2]
[365963240,1749997853593,-884.21,0.00022465,2]
[365963242,1749997853603,-460.0,0.00022465,2]
[365963244,1749997853612,-460.0,0.00022465,2]
[365963246,1749997853622,-841.13,0.00022465,2]
[365963248,1749997853631,-460.0,0.00022465,2]
[365963250,1749997853641,-929.85,0.00022465,2]
[365963252,1749997853650,-1702.65,0.00022465,2]
[365963254,1749997853660,-1493.35,0.00022465,2]
[365963256,1749997853670,-1799.88,0.00022465,2]
[365963258,1749997853680,-1500.0,0.00022471,2]
[365963260,1749997853690,-1000.0,0.00022521,2]
[365963262,1749997853700,-1200.0,0.00022521,2]
[365963264,1749997853710,-1000.0,0.00022521,2]
[365963266,1749997853720,-774.87087582,0.0002259,7]
[365963268,1749997853729,-151.0,0.000226,8]
[365963270,1749997853739,-310.180868,0.00022603,2]
[365963272,1749997853748,-153.0,0.0002263,2]
[365963274,1749997853757,-153.0,0.0002263,2]
[365963276,1749997853767,-153.0,0.0002263,2]
[365963278,1749997853779,-153.0,0.0002263,2]
[365963280,1749997853788,-50000.0,0.0002266,2]
[365963282,1749997853799,-153.0,0.00022661,2]
[365963284,1749997853808,-177.0323298,0.00022685,2]
[365963286,1749997853818,-153.0,0.00022685,2]
[365963288,1749997853827,-573.8932911,0.00022685,2]
[365963290,1749997853838,-437.03504658,0.00022689,2]
[365963292,1749997853847,-4171.2,0.00022734,2]
[365963294,1749997853857,-543.94,0.00022739,2]
[365963296,1749997853867,-460.0,0.00022739,2]
[365963298,1749997853880,-679.29,0.00022739,2]
[365963300,1749997853891,-1724.94,0.00022739,2]
[365963302,1749997853901,-522.62,0.00022739,2]
[365963304,1749997853911,-1483.85,0.00022739,2]
[365963306,1749997853922,-483.8,0.00022739,2]
[365963308,1749997853932,-1946.18,0.00022739,2]
[365963310,1749997853942,-1921.67,0.00022739,2]
[365963312,1749997853953,-650.71,0.00022739,2]
[365963314,1749997853963,-671.89,0.00022739,2]
[365963316,1749997853972,-884.21,0.00022739,2]
[365963319,1749997853983,-460.0,0.00022739,2]
[365963320,1749997853992,-460.0,0.00022739,2]
[365963323,1749997854002,-841.13,0.00022739,2]
[365963325,1749997854012,-460.0,0.00022739,2]
[365963327,1749997854022,-929.85,0.00022739,2]
[365963329,1749997854031,-1702.65,0.00022739,2]
[365963331,1749997854041,-1493.35,0.00022739,2]
[365963333,1749997854052,-1799.88,0.00022739,2]
[365963335,1749997854063,-587.0,0.00022776,2]
[365963337,1749997854073,-774.87087582,0.00022797,7]
[365963339,1749997854083,-124153.1441684,0.000228,7]
[365963341,1749997854094,-437.03504658,0.00022961,2]
[365963343,1749997854104,-349.27989864,0.00022962,2]
[365963345,1749997854114,-5000.0,0.00022996,2]
[365963347,1749997854123,-286.0,0.00022996,2]
[365963349,1749997854137,-47850.76996786,0.00022998,2]
[365963351,1749997854148,-5989.46906902,0.00023,2]
[365963353,1749997854158,-827.1631375,0.00023,2]
[365963355,1749997854168,-6022.6412642,0.00023,3]
[365963357,1749997854179,-127618.16708313,0.00023,2]
[365963359,1749997854190,-73000.0,0.00023,2]
[365963361,1749997854201,-23403.9287886,0.00023,20]
[365963363,1749997854211,-835.55256958,0.00023,3]
[365963365,1749997854223,-774.87087582,0.00023003,8]
[365963367,1749997854233,-543.94,0.00023013,2]
[365963369,1749997854243,-460.0,0.00023013,2]
[365963371,1749997854252,-500.0,0.00023013,2]
[365963373,1749997854262,-679.29,0.00023013,2]
[365963375,1749997854272,-1724.94,0.00023013,2]
[365963377,1749997854283,-522.62,0.00023013,2]
[365963379,1749997854293,-1483.85,0.00023013,2]
[365963381,1749997854302,-1946.18,0.00023013,2]
[365963383,1749997854313,-1921.67,0.00023013,2]
[365963385,1749997854322,-650.71,0.00023013,2]
[365963388,1749997854332,-671.89,0.00023013,2]
[365963390,1749997854342,-884.21,0.00023013,2]
[365963392,1749997854352,-460.0,0.00023013,2]
[365963394,1749997854362,-204.5,0.00023013,2]
[365963396,1749997854371,-841.13,0.00023013,2]
[365963398,1749997854381,-460.0,0.00023013,2]
[365963399,1749997854391,-929.85,0.00023013,2]
[365963415,1749997854523,-1702.65,0.00023013,2]
[365963417,1749997854533,-1493.35,0.00023013,2]
[365963419,1749997854543,-1799.88,0.00023013,2]
[365963421,1749997854554,-2000.0,0.00023019,2]
[365963423,1749997854565,-437.0350466,0.00023049,2]
[365963425,1749997854574,-500.0,0.00023056,2]
[365963427,1749997854584,-500.0,0.00023062,2]
[365963429,1749997854593,-500.0,0.00023068,2]
[365963431,1749997854603,-1500.0,0.00023068,2]
[365963433,1749997854613,-1800.0,0.00023068,2]
[365963435,1749997854623,-1500.0,0.00023068,2]
[365963437,1749997854633,-151.0,0.000231,9]
[365963439,1749997854642,-1200.32,0.000231,7]
[365963441,1749997854652,-1688.0,0.0002312,2]
[365963443,1749997854662,-5000.0,0.0002312,2]
[365963445,1749997854673,-151.0,0.0002312,2]
[365963447,1749997854683,-151.0,0.0002312,2]
[365963449,1749997854693,-151.0,0.0002312,2]
[365963451,1749997854703,-151.0,0.0002312,2]
[365963453,1749997854712,-500.0,0.0002312,2]
[365963455,1749997854722,-151.0,0.0002312,2]
[365963457,1749997854732,-500.0,0.0002312,2]
[365963459,1749997854742,-151.0,0.0002312,2]
[365963461,1749997854752,-500.0,0.0002312,2]
[365963463,1749997854762,-226.76390347,0.0002312,2]
[365963465,1749997854772,-500.0,0.0002312,2]
[365963467,1749997854782,-500.0,0.0002312,2]
[365963469,1749997854792,-500.0,0.0002312,2]
[365963471,1749997854802,-500.0,0.0002312,2]
[365963473,1749997854812,-500.0,0.0002312,2]
[365963475,1749997854822,-500.0,0.0002312,2]
[365963477,1749997854832,-500.0,0.0002312,2]
[365963479,1749997854842,-500.0,0.0002312,2]
[365963481,1749997854852,-500.0,0.0002312,2]
[365963483,1749997854862,-500.0,0.0002312,2]
[365963485,1749997854873,-500.0,0.0002312,2]
[365963487,1749997854882,-500.0,0.0002312,2]
[365963489,1749997854896,-207.4,0.0002312,2]
[365963491,1749997854906,-151.0,0.0002313,7]
[365963492,1749997854915,-500.0,0.00023146,2]
[365963494,1749997854927,-500.0,0.00023158,2]
[365963496,1749997854937,-500.0,0.00023159,2]
[365963498,1749997854947,-488.82610525,0.00023175,2]
[365963500,1749997854957,-500.0,0.00023188,2]
[365963503,1749997854966,-99894.63,0.000232,7]
[365963505,1749997854976,-500.0,0.00023206,2]
[365963506,1749997854986,-774.87087582,0.0002321,8]
[365963509,1749997854996,-7620.39078176,0.00023265,2]
[365963511,1749997855005,-500.0,0.00023279,2]
[365963513,1749997855015,-543.94,0.00023287,2]
[365963515,1749997855025,-460.0,0.00023287,2]
[365963516,1749997855035,-679.29,0.00023287,2]
[365963518,1749997855044,-1724.94,0.00023287,2]
[365963521,1749997855054,-500.0,0.00023287,2]
[365963523,1749997855065,-522.62,0.00023287,2]
[365963525,1749997855075,-1483.85,0.00023287,2]
[365963527,1749997855084,-1946.18,0.00023287,2]
[365963529,1749997855094,-1921.67,0.00023287,2]
[365963531,1749997855104,-650.71,0.00023287,2]
[365963533,1749997855113,-671.89,0.00023287,2]
[365963535,1749997855123,-884.21,0.00023287,2]
[365963537,1749997855133,-460.0,0.00023287,2]
[365963539,1749997855142,-841.13,0.00023287,2]
[365963541,1749997855152,-460.0,0.00023287,2]
[365963543,1749997855162,-929.85,0.00023287,2]
[365963545,1749997855172,-1702.65,0.00023287,2]
[365963547,1749997855181,-1493.35,0.00023287,2]
[365963549,1749997855191,-1799.88,0.00023287,2]
[365963551,1749997855200,-36359.58,0.000233,2]
[365963553,1749997855210,-151.0,0.000233,7]
[365963554,1749997855219,-151.0,0.000233,7]
[365963556,1749997855229,-151.0,0.000233,7]
[365963559,1749997855239,-500.0,0.00023319,2]
[365963561,1749997855248,-500.0,0.00023333,2]
[365963563,1749997855258,-500.0,0.00023352,2]
[365963565,1749997855267,-600.0,0.00023356,2]
[365963567,1749997855277,-500.0,0.00023356,2]
[365963568,1749997855286,-293.85068442,0.00023361,2]
[365963571,1749997855295,-500.0,0.00023364,2]
[365963573,1749997855306,-500.0,0.00023371,2]
[365963575,1749997855316,-500.0,0.00023401,2]
[365963576,1749997855326,-774.87087582,0.00023417,9]
[365963578,1749997855335,-800.0,0.00023427,2]
[365963580,1749997855345,-500.0,0.0002343,2]
[365963582,1749997855355,-800.0,0.00023432,2]
[365963584,1749997855364,-772.23959303,0.00023432,2]
[365963586,1749997855374,-800.0,0.00023444,2]
[365963588,1749997855383,-500.0,0.0002345,2]
[365963590,1749997855393,-500.0,0.00023457,2]
[365963592,1749997855403,-500.0,0.00023469,2]
[365963595,1749997855414,-500.0,0.00023473,2]
[365963596,1749997855424,-153.0,0.00023483,2]
[365963598,1749997855435,-153.0,0.00023483,2]
[365963600,1749997855446,-500.0,0.00023493,2]
[365963602,1749997855456,-200.0,0.00023499,2]
[365963604,1749997855465,-280.71795802,0.00023499,2]
[365963606,1749997855475,-10525.90070603,0.000235,2]
[365963609,1749997855484,-19011.21529753,0.000235,2]
[365963611,1749997855493,-197572.33608932,0.000235,2]
[365963680,1749997856275,-1704.20007793,0.000235,2]
[365963779,1749997857216,-460.0,0.00019178,2]
[365963781,1749997857225,-440.0,0.00019178,2]
[365963783,1749997857234,-500.0,0.00019178,2]
[365963785,1749997857243,-323.93283531,0.00019178,2]
[365963787,1749997857253,-460.0,0.00019178,2]
[365963790,1749997857262,-460.0,0.00019178,2]
[365963791,1749997857271,-292.47471781,0.00019178,2]
[365963794,1749997857280,-460.0,0.00019178,2]
[365963795,1749997857290,-453.94,0.00019441,3]
[365963797,1749997857299,-378.48755791,0.00019452,2]
[365963800,1749997857310,-559.89,0.000217,2]
[365963802,1749997857320,-573.8932911,0.00022685,2]
[365963803,1749997857329,-559.89,0.00023,7]
[365963805,1749997857338,-18129.41762979,0.000235,2]
[365965529,1749998127173,154.66013963,6.9e-07,2]
[365965534,1749998201962,460.435128,0.00013699,2]
[365965539,1749998460064,417.7854132,0.0001778,2]
[365965540,1749998465820,1068.165195,0.0001778,2]
[365965552,1749998511324,5000.0,0.00018,2]
[365965553,1749998527298,2191.27550935,0.00018,2]
[365965556,1749998643271,10000.0,0.00017779,2]
[365965558,1749998703255,1464.05,0.000191,120]
[365965559,1749998805125,-1000.0,0.0001821,2]
[365965560,1749998805148,-251.45403087,0.00018677,2]
[365965561,1749998805171,-281.36594423,0.00018678,2]
[365965562,1749998805194,-500.0,0.00018777,2]
[365965563,1749998805216,-500.0,0.00018777,2]
[365965564,1749998805239,-500.0,0.00018777,2]
[365965565,1749998805261,-500.0,0.00018777,2]
[365965566,1749998805283,-200.39152211,0.00018777,2]
[365965567,1749998805306,-500.0,0.00018777,2]
[365965568,1749998805330,-500.0,0.00018777,2]
[365965569,1749998805352,-500.0,0.00018777,2]
[365965570,1749998805376,-500.0,0.00018777,2]
[365965571,1749998805400,-500.0,0.00018777,2]
[365965572,1749998805425,-500.0,0.00018777,2]
[365965573,1749998805448,-500.0,0.00018777,2]
[365965574,1749998805470,-181.8462112,0.00018777,2]
[365965575,1749998805491,-500.0,0.00018777,2]
[365965576,1749998805513,-449.23413753,0.00018777,2]
[365965577,1749998805535,-500.0,0.00018777,2]
[365965578,1749998805557,-500.0,0.00018777,2]
[365965579,1749998805579,-500.0,0.00018777,2]
[365965580,1749998805606,-500.0,0.00018777,2]
[365965581,1749998805630,-500.0,0.00018777,2]
[365965582,1749998805653,-500.0,0.00018777,2]
[365965583,1749998805675,-500.0,0.00018777,2]
[365965584,1749998805697,-270.75101448,0.00018777,2]
[365965585,1749998805721,-500.0,0.00018777,2]
[365965586,1749998805743,-406.08484223,0.00018777,2]
[365965587,1749998805765,-500.0,0.00018777,2]
[365965588,1749998805788,-500.0,0.00018777,2]
[365965589,1749998805812,-365.88788805,0.00018777,2]
[365965590,1749998848133,-151.67197988,0.00018776,2]
[365965592,1749998852112,-148.32802012,0.00018776,2]
[365965593,1749998852142,-122.81122717,0.00018777,2]
[365965594,1749998853533,-11.30088478,0.00018777,2]
[365965595,1749998853558,-285.90908166,0.00018777,2]
[365965598,1749998951088,-1000.0,0.00018206,2]
[365965599,1749998951110,-1000.0,0.0001821,2]
[365965600,1749998951132,-1000.0,0.0001821,2]
[365965601,1749998951152,-160.50970012,0.00018439,2]
[365965602,1749998951174,-300.0,0.00018775,2]
[365965603,1749998951195,-50000.0,0.00018776,2]
[365965604,1749998951217,-500.0,0.00018776,2]
[365965605,1749998951240,-478.80879988,0.00018776,2]
[365965606,1749998958097,-160.0,0.00018206,2]
[365965607,1749998958122,-21.19120012,0.00018776,2]
[365965608,1749998958147,-500.0,0.00018776,2]
[365965609,1749998958170,-642.33025261,0.00018776,2]
[365965610,1749998958193,-500.0,0.00018776,2]
[365965611,1749998958218,-500.0,0.00018776,2]
[365965612,1749998958240,-500.0,0.00018776,2]